bitfinex-derivatives/quotes_SOLF0:USTF0_20240908
["timestamp","ask_amount","ask_price","bid_price","bid_amount"]
[1725824660119,0.285699,128.73,128.69,8.38]
[1725824661322,3.1081,128.71,128.69,8.38]
[1725824662216,3.1081,128.7,128.69,8.38]
[1725824673733,1.4041,128.75,128.64,4.1051]
[1725824673734,23.37,128.72,128.64,4.1051]
[1725824674033,31.75,128.72,128.66,8.38]
[1725824674331,1.2897,128.71,128.66,8.38]
[1725824674525,3.1088,128.68,128.66,8.38]
[1725824676520,3.1088,128.68,128.67,8.38]
[1725824676820,24.6385,128.74,128.67,8.38]
[1725824677022,24.6385,128.74,128.7,8.38]
[1725824677023,1.3185,128.74,128.7,8.38]
[1725824678024,3.1081,128.71,128.7,8.38]
[1725824678235,1.4041,128.75,128.7,8.38]
[1725824678932,3.1079,128.71,128.7,8.38]
[1725824679838,3.1077,128.72,128.7,8.38]
[1725824680028,3.1077,128.72,128.71,8.38]
[1725824688731,3.1074,128.73,128.71,8.38]
[1725824692031,3.1072,128.74,128.71,8.38]
[1725824692233,3.1072,128.74,128.73,8.38]
[1725824693735,3.107,128.75,128.73,8.38]
[1725824697139,3.1068,128.76,128.74,8.38]
[1725824699641,8.38,128.8,128.74,8.38]
[1725824699942,8.38,128.8,128.76,8.38]
[1725824700140,3.1063,128.78,128.76,8.38]
[1725824701332,8.38,128.8,128.74,3.107]
[1725824701537,8.38,128.79,128.73,8.38]
[1725824702042,3.1068,128.76,128.73,8.38]
[1725824702630,140.00025653,128.8,128.74,11.4871]
[1725824703240,140.00025653,128.8,128.76,8.38]
[1725824703639,140.00025653,128.8,128.77,8.38]
[1725824703839,3.1061,128.79,128.77,8.38]
[1725824704137,3.1061,128.79,128.78,8.38]
[1725824704842,140.00025653,128.8,128.78,8.38]
[1725824705235,1.3635,128.83,128.78,8.38]
[1725824705436,3.1055,128.81,128.8,8.38]
[1725824706038,3.1053,128.82,128.8,8.38]
[1725824706246,3.1053,128.82,128.81,8.38]
[1725824707141,3.1053,128.82,128.8,8.38]
[1725824707538,3.1055,128.81,128.78,8.38]
[1725824708340,27.21320388,128.84,128.78,8.38]
[1725824708542,35.59320388,128.84,128.78,8.38]
[1725824708945,0.28549717,128.83,128.78,8.38]
[1725824709341,3.1059,128.8,128.78,8.38]
[1725824715960,3.106,128.79,128.76,3.1066]
[1725824716152,3.106,128.79,128.78,8.38]
[1725824727756,1.3479,128.83,128.78,8.38]
[1725824728064,3.89320388,128.84,128.82,8.38]
[1725824728264,3.105,128.83,128.82,8.38]
[1725824729061,3.89126213,128.86,128.82,8.38]
[1725824729062,3.1045,128.85,128.82,8.38]
[1725824729261,3.1045,128.85,128.84,8.38]
[1725824732462,3.1047,128.84,128.83,8.38]
[1725824733866,3.1047,128.84,128.8,5.8395]
[1725824734066,3.1047,128.84,128.83,8.38]
[1725824738864,3.1046,128.85,128.83,8.38]
[1725824739171,3.1046,128.85,128.84,8.38]
[1725824740071,3.1046,128.85,128.83,8.38]
[1725824740772,3.1047,128.84,128.82,8.38]
[1725824741269,31.7,128.86,128.8,2.734]
[1725824741461,31.98544273,128.85,128.79,8.38]
[1725824741664,0.28546626,128.84,128.77,1.3795]
[1725824741864,3.1059,128.8,128.78,8.38]
[1725824743667,3.1059,128.8,128.79,8.38]
[1725824743968,3.1055,128.81,128.79,8.38]
[1725824746973,3.1055,128.81,128.8,8.38]
[1725824751772,33.085,128.86,128.78,7.0314155]
[1725824751773,3.1053,128.82,128.78,7.0314155]
[1725824751978,3.1053,128.82,128.81,8.38]
[1725824752178,194.9107449,128.87,128.78,3.9252155]
[1725824752179,31.7,128.86,128.78,3.9252155]
[1725824752379,3.1052,128.82,128.81,8.38]
[1725824766593,163.2107449,128.87,128.81,8.38]
[1725824766794,161.9170449,128.87,128.84,8.38]
[1725824767197,3.104,128.87,128.86,8.38]
[1725824778708,3.38937352,128.87,128.86,8.38]
[1725824779210,3.1044,128.86,128.83,5.07319503]
[1725824779409,8.38,128.88,128.8,3.1056]
[1725824779601,8.38,128.88,128.82,8.38]
[1725824779602,0.28538042,128.87,128.82,8.38]
[1725824781407,3.105,128.83,128.82,8.38]
[1725824786006,3.1052,128.82,128.79,3.81413807]
[1725824786202,8.38,128.84,128.78,1.3941]
[1725824786411,31.7,128.86,128.8,8.38]
[1725824786606,0.28542617,128.85,128.8,8.38]
[1725824786810,31.7,128.86,128.8,8.38]
[1725824787112,3.1056,128.81,128.78,5.21301598]
[1725824787318,3.1056,128.81,128.8,8.38]
[1725824795919,3.06984853,128.81,128.8,8.38]
[1725824799119,3.1058,128.8,128.79,8.38]
[1725824804723,3.1061,128.79,128.78,8.38]
[1725824819933,3.1058,128.8,128.78,8.38]
[1725824820336,3.1058,128.8,128.79,8.38]
[1725824821535,3.1061,128.79,128.77,8.38]
[1725824821736,3.1061,128.79,128.76,11.4867]
[1725824822137,3.1061,128.79,128.76,8.38]
[1725824823245,3.1061,128.79,128.76,11.4867]
[1725824829045,1.2894,128.83,128.77,8.38]
[1725824829248,1.392,128.84,128.8,8.38]
[1725824829447,27.21177955,128.88,128.82,8.38]
[1725824829644,0.28540756,128.87,128.83,8.38]
[1725824830045,28.59357955,128.88,128.83,8.38]
[1725824830247,5.27357955,128.88,128.83,8.38]
[1725824830449,3.1047,128.84,128.83,8.38]
[1725824832754,3.1045,128.85,128.83,8.38]
[1725824832954,3.1045,128.85,128.84,8.38]
[1725824833956,3.1045,128.85,128.83,8.38]
[1725824834154,3.1047,128.84,128.83,8.38]
[1725824834453,3.1047,128.84,128.81,9.6877]
[1725824839853,3.1047,128.84,128.81,12.7931]
[1725824853167,3.1047,128.84,128.82,8.38]
[1725824855174,3.1047,128.84,128.81,8.38]
[1725824857375,3.1047,128.84,128.83,8.38]
[1725824857874,3.1046,128.85,128.83,8.38]
[1725824858078,5.27357955,128.88,128.79,3.8815993]
[1725824858079,5.82431512,128.89,128.84,8.38]
[1725824858368,3.1039,128.88,128.86,8.38]
[1725824858779,140.32817419,128.9,128.87,8.38]
[1725824859670,3.1036,128.89,128.87,8.38]
[1725824862181,137.22467419,128.9,128.85,8.38]
[1725824862182,3.1038,128.88,128.85,8.38]
[1725824864883,3.1038,128.88,128.87,8.38]
[1725824867179,3.1037,128.89,128.87,8.38]
[1725824868384,3.1037,128.89,128.88,8.38]
[1725824874085,3.1039,128.88,128.86,8.38]
[1725824874986,8.38,128.89,128.8,4.0295]
[1725824875288,8.38,128.89,128.84,8.38]
[1725824876387,3.1042,128.87,128.84,8.38]
[1725824876584,3.1042,128.87,128.85,8.38]
[1725824877387,3.1039,128.88,128.85,8.38]
[1725824878992,3.1041,128.87,128.85,8.38]
[1725824880692,3.1041,128.87,128.84,3.1046]
[1725824880693,3.1039,128.88,128.84,3.1046]
[1725824880894,3.1039,128.88,128.85,8.38]
[1725824881093,141.05763235,128.9,128.85,8.38]
[1725824882295,3.1041,128.87,128.85,8.38]
[1725824882997,3.1041,128.87,128.86,8.38]
[1725824889300,3.1039,128.88,128.86,8.38]
[1725824890493,3.1039,128.88,128.87,8.38]
[1725824895807,1.3536,128.95,128.87,8.38]
[1725824895808,23.32,128.94,128.87,8.38]
[1725824896013,0.28531489,128.93,128.89,8.38]
[1725824896308,3.1033,128.9,128.88,8.38]
[1725824896501,8.38,128.92,128.87,8.38]
[1725824896702,0.28531489,128.91,128.87,8.38]
[1725824897697,3.1038,128.88,128.8,4.0295]
[1725824897904,3.1038,128.88,128.84,8.38]
[1725824898499,3.1041,128.87,128.84,11.4846]
[1725824900812,3.1041,128.87,128.85,8.38]
[1725824903715,3.1039,128.88,128.85,8.38]
[1725824911521,3.1039,128.88,128.85,11.4844]
[1725824915925,35.66266687,128.9,128.8,4.0295]
[1725824916132,8.38,128.87,128.8,4.0295]
[1725824916327,176.8146036,128.88,128.82,8.38]
[1725824916628,3.1044,128.86,128.84,8.38]
[1725824924842,3.1045,128.85,128.84,8.38]
[1725824925328,3.1045,128.85,128.82,11.4852]
[1725824928332,3.1045,128.85,128.84,8.38]
[1725824931733,3.1045,128.85,128.83,8.38]
[1725824933334,8.38,128.86,128.81,8.38]
[1725824933928,3.1049,128.84,128.81,8.38]
[1725824935241,3.1051,128.83,128.8,4.0295]
[1725824935437,3.1051,128.83,128.8,12.4095]
[1725824942140,3.1051,128.83,128.81,8.38]
[1725824942536,3.1048,128.84,128.82,8.38]
[1725824942945,3.1047,128.85,128.82,8.38]
[1725824943641,3.1047,128.85,128.82,11.4852]
[1725824943836,3.1044,128.86,128.84,8.38]
[1725824944439,3.1044,128.86,128.85,8.38]
[1725824944638,145.1146036,128.88,128.85,8.38]
[1725824944639,3.1041,128.87,128.85,8.38]
[1725824945437,3.1038,128.88,128.85,8.38]
[1725824947138,8.38,128.9,128.85,8.38]
[1725824947340,8.38,128.9,128.83,3.1049]
[1725824947341,8.38,128.9,128.84,8.38]
[1725824948145,3.104,128.87,128.84,8.38]
[1725824950544,3.104,128.87,128.84,11.4847]
[1725824962356,3.1043,128.86,128.83,11.4849]
[1725824962548,8.38,128.87,128.81,8.38]
[1725824963955,8.38,128.83,128.76,106.55041642]
[1725824964251,8.38,128.83,128.77,8.38]
[1725824964643,8.38,128.84,128.78,12.3052155]
[1725824964841,8.38,128.84,128.78,8.38]
[1725824965854,3.1054,128.82,128.78,15.44160205]
[1725824968952,3.1054,128.82,128.79,8.38]
[1725824970153,3.1051,128.83,128.81,8.38]
[1725824971051,3.1048,128.84,128.82,8.38]
[1725824973468,196.50305038,128.87,128.81,8.38]
[1725824973960,3.1049,128.84,128.81,8.38]
[1725824974354,3.1049,128.84,128.8,3.1056]
[1725824974554,3.1049,128.84,128.8,11.4856]
[1725824976968,3.105,128.83,128.8,11.4856]
[1725824977368,3.105,128.83,128.8,8.38]
[1725824992368,4.0909,128.89,128.81,8.38]
[1725824992565,12.4709,128.89,128.84,8.38]
[1725824992968,3.1045,128.85,128.81,3.1054]
[1725824993169,3.1045,128.85,128.82,12.32021739]
[1725824994777,3.1044,128.86,128.83,8.38]
[1725825000780,8.38,128.88,128.77,4.1221]
[1725825001073,8.38,128.88,128.82,8.38]
[1725825001275,3.1047,128.85,128.82,8.38]
[1725825002575,3.1039,128.88,128.84,8.38]
[1725825002775,3.1039,128.88,128.86,8.38]
[1725825002971,8.38,128.92,128.86,8.38]
[1725825003876,8.38,128.92,128.88,8.38]
[1725825004079,4.0477,128.94,128.89,8.38]
[1725825004276,0.28527504,128.93,128.89,8.38]
[1725825004674,2.6461,128.94,128.89,8.38]
[1725825004878,3.103,128.91,128.89,8.38]
[1725825005069,1.2916,128.94,128.89,8.38]
[1725825005983,3.103,128.92,128.89,8.38]
[1725825006373,1.2916,128.94,128.89,8.38]
[1725825006583,3.1033,128.9,128.87,9.7694]
[1725825006778,8.38,128.91,128.86,8.38]
[1725825008382,3.1037,128.89,128.86,8.38]
[1725825012081,8.38,128.91,128.86,8.38]
[1725825012289,12.19839348,128.9,128.84,11.4846]
[1725825012584,8.38,128.9,128.84,11.4846]
[1725825012775,3.1039,128.88,128.84,11.4846]
[1725825018189,3.104,128.87,128.84,8.38]
[1725825026593,8.38,128.88,128.83,1.3894]
[1725825026797,8.38,128.88,128.82,8.38]
[1725825028298,3.1046,128.85,128.82,8.38]
[1725825039214,1.4048,128.89,128.84,8.38]
[1725825039515,23.3,128.95,128.86,8.38]
[1725825039516,31.68,128.92,128.86,8.38]
[1725825039810,0.28532688,128.91,128.86,8.38]
[1725825040002,3.1039,128.88,128.86,8.38]
[1725825043907,3.1039,128.88,128.85,8.38]
[1725825044311,3.1041,128.87,128.85,8.38]
[1725825044815,8.38,128.89,128.83,11.4849]
[1725825045004,8.38,128.89,128.83,15.403242]
[1725825045203,8.38,128.88,128.83,7.023242]
[1725825046014,8.38,128.88,128.83,3.1049]
[1725825046408,3.1044,128.86,128.83,3.1049]
[1725825047412,3.1044,128.86,128.82,10.95107386]
[1725825047618,3.1045,128.85,128.82,19.33107386]
[1725825049018,3.1045,128.85,128.84,8.38]
[1725825049618,3.1043,128.86,128.84,8.38]
[1725825061222,3.1041,128.87,128.85,8.38]
[1725825061418,1.3065,128.9,128.85,8.38]
[1725825061633,31.68,128.92,128.86,8.38]
[1725825061931,24.6319,128.94,128.88,8.38]
[1725825062122,33.0119,128.94,128.88,8.38]
[1725825062322,8.38,128.94,128.89,8.38]
[1725825062524,2.7032,128.95,128.9,8.38]
[1725825063328,1.3633,128.95,128.9,8.38]
[1725825063628,3.1025,128.94,128.91,8.38]
[1725825068734,8.38,128.94,128.88,8.38]
[1725825069736,3.103,128.92,128.88,8.38]
[1725825070335,3.103,128.92,128.88,11.4838]
[1725825077244,3.103,128.92,128.9,8.38]
[1725825081847,3.1027,128.93,128.91,8.38]
[1725825084143,3.1024,128.94,128.91,8.38]
[1725825084346,3.1024,128.94,128.92,8.38]
[1725825088743,3.1024,128.94,128.91,8.38]
[1725825091349,3.87339805,128.97,128.91,8.38]
[1725825091549,0.28519553,128.96,128.91,8.38]
[1725825091746,3.97549255,128.96,128.91,8.38]
[1725825091946,3.1025,128.94,128.91,8.38]
[1725825094449,3.1025,128.94,128.92,8.38]
[1725825097452,3.1026,128.93,128.92,8.38]
[1725825106963,3.1024,128.94,128.92,8.38]
[1725825108260,3.1026,128.93,128.91,9.7464]
[1725825109368,3.1026,128.93,128.91,1.3664]
[1725825115366,3.103,128.92,128.9,8.38]
[1725825115968,3.103,128.91,128.89,12.27626171]
[1725825116165,8.38,128.94,128.87,1.37]
[1725825116362,8.38,128.94,128.87,9.75]
[1725825116559,8.38,128.94,128.87,1.37]
[1725825116762,8.38,128.94,128.87,9.75]
[1725825117474,3.1034,128.9,128.87,9.75]
[1725825120567,3.1034,128.9,128.88,8.38]
[1725825120763,8.38,128.94,128.88,8.38]
[1725825120968,3.103,128.91,128.88,8.38]
[1725825122272,3.1033,128.9,128.88,8.38]
[1725825122462,8.38,128.92,128.86,1.325]
[1725825122662,8.38,128.92,128.87,8.38]
[1725825122867,3.1037,128.89,128.87,8.38]
[1725825124065,3.1034,128.9,128.87,8.38]
[1725825124270,3.9847,128.95,128.89,8.38]
[1725825124477,12.3647,128.95,128.89,8.38]
[1725825124976,3.1032,128.91,128.89,8.38]
[1725825125578,3.1032,128.91,128.87,3.1039]
[1725825125766,3.1032,128.91,128.88,8.38]
[1725825126063,3.1035,128.9,128.88,8.38]
[1725825135680,3.1035,128.9,128.87,8.38]
[1725825136680,8.38,128.92,128.87,8.38]
[1725825136681,3.1036,128.89,128.87,8.38]
[1725825141374,3.1034,128.9,128.87,8.38]
[1725825141576,3.1034,128.9,128.89,8.38]
[1725825144187,2.635,128.95,128.89,12.31489601]
[1725825144488,1.2867,128.95,128.92,8.38]
[1725825144789,3.1025,128.94,128.92,8.38]
[1725825152288,3.1025,128.94,128.9,15.37915779]
[1725825157483,3.1026,128.93,128.9,15.37915779]
[1725825158089,8.38,128.93,128.85,120.14067068]
[1725825158284,8.38,128.93,128.88,8.38]
[1725825158887,3.1032,128.91,128.88,8.38]
[1725825159391,3.1034,128.9,128.88,8.38]
[1725825159610,3.1034,128.9,128.86,11.4842]
[1725825160494,12.20884122,128.91,128.85,128.52067068]
[1725825160886,3.104,128.87,128.85,128.52067068]
[1725825161396,3.104,128.87,128.85,120.14067068]
[1725825166185,3.104,128.87,128.83,7.0675]
[1725825166390,9.7202,128.9,128.83,12.3427]
[1725825168301,3.1041,128.87,128.83,15.4476]
[1725825176699,8.38,128.88,128.72,10.08008304]
[1725825176902,8.38,128.86,128.76,4.0044]
[1725825177105,8.38,128.86,128.8,8.38]
[1725825177307,3.1049,128.84,128.81,12.17822995]
[1725825177606,3.1049,128.84,128.81,8.38]
[1725825185009,9.7528,128.89,128.82,8.38]
[1725825185199,1.3402,128.9,128.8,3.92593742]
[1725825185200,9.7202,128.9,128.84,8.38]
[1725825185402,9.7202,128.9,128.85,8.38]
[1725825185598,1.3951,128.93,128.86,8.38]
[1725825185599,3.1038,128.88,128.86,8.38]
[1725825187115,3.1036,128.89,128.86,8.38]
[1725825188605,3.1038,128.88,128.86,8.38]
[1725825193618,1.3951,128.93,128.86,11.4842]
[1725825193813,9.7751,128.93,128.86,11.4842]
[1725825194709,3.1034,128.9,128.86,11.4842]
[1725825195015,3.1034,128.9,128.87,8.38]
[1725825196323,8.38,128.9,128.81,4.0141]
[1725825196618,8.38,128.9,128.84,8.38]
[1725825196818,3.1039,128.88,128.85,8.38]
[1725825198422,3.1039,128.88,128.85,11.4845]
[1725825199016,3.1039,128.88,128.84,11.4847]
[1725825199207,8.38,128.9,128.84,11.4847]
[1725825199407,8.38,128.9,128.84,8.38]
[1725825199606,8.38,128.89,128.81,4.0141]
[1725825199811,8.38,128.89,128.83,8.38]
[1725825200410,12.26737969,128.89,128.83,8.38]
[1725825201522,9.6629,128.9,128.84,8.38]
[1725825202121,3.1041,128.87,128.84,8.38]
[1725825205223,3.1041,128.87,128.83,3.1049]
[1725825205411,3.1041,128.87,128.83,11.4849]
[1725825205616,3.1041,128.87,128.84,8.38]
[1725825212015,28.39615675,128.9,128.81,4.0141]
[1725825212220,8.38,128.88,128.82,8.38]
[1725825212918,3.1046,128.85,128.82,8.38]
[1725825215922,8.38,128.85,128.79,3.1058]
[1725825216130,8.38,128.85,128.79,15.4122134]
[1725825216520,3.1051,128.83,128.8,8.38]
[1725825220833,8.38,128.85,128.8,8.38]
[1725825221333,3.1051,128.83,128.8,8.38]
[1725825224433,3.1052,128.82,128.8,8.38]
[1725825232344,3.1051,128.83,128.8,8.38]
[1725825240254,3.1051,128.83,128.79,6.98749937]
[1725825240448,3.1051,128.83,128.8,3.1057]
[1725825240951,8.38,128.84,128.79,11.4859]
[1725825241845,3.1051,128.83,128.79,11.4859]
[1725825242052,3.1051,128.83,128.79,15.31189013]
[1725825247453,3.1052,128.82,128.79,8.38]
[1725825248067,8.38,128.83,128.78,3.1061]
[1725825248865,3.1055,128.81,128.77,11.4864]
[1725825250166,3.1058,128.8,128.76,7.0559]
[1725825250463,3.1058,128.8,128.77,8.38]
[1725825251362,3.1058,128.8,128.77,11.4864]
[1725825251573,3.1058,128.8,128.77,3.1064]
[1725825251871,3.1058,128.8,128.76,5.7676]
[1725825252164,11.4858,128.8,128.76,5.7676]
[1725825252557,3.1058,128.8,128.76,5.7676]
[1725825254055,8.38,128.81,128.75,123.49593279]
[1725825254267,27.20433297,128.83,128.73,1.274]
[1725825254268,3.1062,128.78,128.73,1.274]
[1725825254460,3.1062,128.78,128.74,8.38]
[1725825255359,3.1062,128.78,128.74,11.487]
[1725825256374,8.38,128.82,128.76,8.38]
[1725825256962,3.1059,128.8,128.76,8.38]
[1725825258663,3.1059,128.79,128.76,8.38]
[1725825258858,8.38,128.8,128.74,11.4871]
[1725825260262,3.1064,128.78,128.74,11.4871]
[1725825261669,3.1064,128.78,128.74,3.1071]
[1725825265071,11.4864,128.78,128.74,3.1071]
[1725825265274,11.4864,128.78,128.71,2.6099]
[1725825265275,8.38,128.77,128.72,12.24478304]
[1725825265865,8.38,128.76,128.71,1.2655]
[1725825266171,8.38,128.77,128.71,9.6455]
[1725825266377,8.38,128.77,128.71,13.51384951]
[1725825267375,3.1068,128.76,128.71,16.62144951]
[1725825272673,3.1069,128.75,128.71,16.62144951]
[1725825273378,3.1072,128.74,128.71,1.2655]
[1725825274374,3.1072,128.74,128.7,3.1081]
[1725825274569,3.1074,128.73,128.69,7.01903211]
[1725825275971,3.1074,128.73,128.69,3.1083]
[1725825277365,3.1074,128.73,128.69,11.4883]
[1725825277773,3.1072,128.74,128.69,11.4883]
[1725825279181,3.1072,128.74,128.7,3.108]
[1725825284880,11.4872,128.74,128.7,3.108]
[1725825285583,8.38,128.74,128.68,6.95425109]
[1725825286981,3.1077,128.72,128.69,8.38]
[1725825287278,8.38,128.74,128.69,8.38]
[1725825287886,3.1074,128.73,128.69,11.4883]
[1725825288180,27.21433297,128.83,128.7,8.38]
[1725825288386,8.38,128.76,128.7,8.38]
[1725825289383,3.1072,128.74,128.7,11.4881]
[1725825292577,3.1072,128.74,128.7,3.1081]
[1725825292779,3.1072,128.74,128.7,11.4881]
[1725825299296,3.1069,128.76,128.71,8.38]
[1725825299994,3.1069,128.76,128.71,11.4876]
[1725825301893,27.21433297,128.83,128.71,3.1076]
[1725825301894,11.4869,128.75,128.71,3.1076]
[1725825302083,8.38,128.75,128.7,3.108]
[1725825302292,11.4873,128.74,128.69,1.352]
[1725825302796,11.4873,128.74,128.69,4.4602]
[1725825303395,3.1073,128.74,128.7,11.488]
[1725825303595,3.107,128.75,128.7,8.38]
[1725825303895,3.107,128.75,128.71,3.1079]
[1725825308501,3.107,128.75,128.7,11.488]
[1725825311910,3.1072,128.74,128.7,11.488]
[1725825316306,3.1072,128.74,128.69,1.352]
[1725825316307,8.38,128.75,128.69,9.732]
[1725825317293,8.38,128.75,128.69,12.8402]
[1725825317498,8.38,128.75,128.69,4.4602]
[1725825317702,8.38,128.75,128.69,12.8402]
[1725825318009,3.1073,128.74,128.69,12.8402]
[1725825322398,3.1073,128.74,128.71,8.38]
[1725825322604,3.107,128.75,128.71,8.38]
[1725825323410,3.107,128.75,128.71,11.4878]
[1725825325710,3.107,128.75,128.71,8.38]
[1725825341226,3.107,128.75,128.71,11.4877]
[1725825341433,3.1064,128.77,128.71,8.38]
[1725825341736,3.1064,128.77,128.73,3.1072]
[1725825342430,3.1064,128.77,128.72,11.4875]
[1725825342825,3.1064,128.77,128.73,8.38]
[1725825343331,3.1064,128.77,128.73,11.4874]
[1725825349436,8.38,128.79,128.71,1.3183]
[1725825349437,3.1063,128.78,128.71,1.3183]
[1725825349740,8.38,128.82,128.77,8.38]
[1725825350130,3.1056,128.81,128.77,11.4863]
[1725825352830,11.4854,128.82,128.78,3.1062]
[1725825353035,11.4854,128.82,128.78,11.4862]
[1725825353036,3.1054,128.82,128.78,11.4862]
[1725825353838,3.1055,128.81,128.78,11.4862]
[1725825354841,3.1055,128.81,128.77,11.4863]
[1725825358448,3.1053,128.82,128.78,8.38]
[1725825358840,3.1053,128.82,128.78,11.4862]
[1725825360748,11.4853,128.82,128.78,3.1062]
[1725825365245,3.1053,128.82,128.78,11.4862]
[1725825367559,3.1053,128.82,128.79,11.4859]
[1725825368946,3.1051,128.83,128.8,3.1057]
[1725825369155,3.1051,128.83,128.81,8.38]
[1725825373856,3.1051,128.83,128.8,11.4857]
[1725825374056,9.7341,128.85,128.8,8.38]
[1725825374354,8.38,128.83,128.77,1.3839]
[1725825374561,3.1055,128.81,128.77,3.1064]
[1725825375958,8.38,128.8,128.76,1.3703]
[1725825376157,8.38,128.79,128.73,8.38]
[1725825376856,3.1063,128.78,128.75,8.38]
[1725825377052,8.38,128.82,128.76,8.38]
[1725825377560,3.1056,128.81,128.77,11.4864]
[1725825378148,3.1057,128.8,128.77,11.4864]
[1725825378557,3.1057,128.8,128.77,8.38]
[1725825399179,3.1061,128.79,128.77,8.38]
[1725825410395,5.19411476,128.83,128.78,8.38]
[1725825410598,1.3541,128.85,128.81,8.38]
[1725825412300,3.1052,128.82,128.81,8.38]
[1725825413803,3.1052,128.82,128.8,8.38]
[1725825424413,3.1055,128.81,128.79,8.38]
[1725825426013,3.1055,128.81,128.8,8.38]
[1725825426213,3.1053,128.82,128.8,8.38]
[1725825429014,3.1051,128.83,128.81,8.38]
[1725825430613,3.1048,128.84,128.82,8.38]
[1725825434910,3.1048,128.84,128.83,8.38]
[1725825435222,146.47034451,128.86,128.83,8.38]
[1725825435919,149.57484451,128.86,128.83,8.38]
[1725825440721,3.1046,128.85,128.82,8.38]
[1725825445521,3.1046,128.85,128.81,4.372]
[1725825445825,3.1046,128.85,128.83,8.38]
[1725825448621,3.1047,128.84,128.82,8.38]
[1725825452734,3.1047,128.84,128.81,8.38]
[1725825452932,8.38,128.84,128.78,8.38]
[1725825454128,3.1054,128.82,128.78,8.38]
[1725825455029,3.1054,128.82,128.79,8.38]
[1725825462450,3.1055,128.81,128.79,8.38]
[1725825463650,3.1055,128.81,128.78,8.38]
[1725825463845,3.1057,128.8,128.78,8.38]
[1725825464643,3.1056,128.81,128.78,8.38]
[1725825465853,3.1057,128.8,128.78,8.38]
[1725825475970,3.1055,128.81,128.79,8.38]
[1725825480562,3.1055,128.81,128.78,3.1062]
[1725825480563,3.1055,128.81,128.78,8.38]
[1725825484562,12.26793973,128.83,128.77,3.1062]
[1725825484765,8.38,128.82,128.76,11.0538]
[1725825485660,3.1061,128.79,128.76,11.0538]
[1725825487272,3.1061,128.79,128.76,2.6738]
[1725825493564,3.1061,128.79,128.75,137.64590798]
[1725825494472,3.1061,128.79,128.75,133.83057833]
[1725825515490,3.1061,128.79,128.75,11.4868]
[1725825527999,3.1059,128.8,128.77,8.38]
[1725825530698,27.2628,128.85,128.78,11.486]
[1725825531012,12.3328,128.85,128.79,8.38]
[1725825532304,3.1054,128.82,128.79,8.38]
[1725825533903,3.1055,128.81,128.78,8.38]
[1725825534107,3.1055,128.81,128.77,3.1063]
[1725825534311,8.38,128.82,128.76,12.3895]
[1725825534712,3.1058,128.8,128.76,15.496]
[1725825534898,3.1058,128.8,128.76,7.116]